[Event "November 21 Late 2023"]
[Site "https://www.chess.com"]
[Date "2023.11.21"]
[Round "11"]
[White "rikchessmx"]
[Black "ExchangeAB"]
[Result "1/2-1/2"]
[Board "76"]
[TimeControl "180+1"]
[WhiteElo "2310"]
[BlackElo "2464"]
[WhiteClock "0:00:45"]
[BlackClock "0:00:13"]

1. e4 {[%clk 0:02:34]}  c6 {[%clk 0:02:59]} 2. d4 {[%clk 0:02:34]}  d5 {[%clk 0:03:00]} 3. Nc3 {[%clk 0:02:34]}  dxe4 {[%clk 0:03:00]} 4. Nxe4 {[%clk 0:02:33]}  Bf5 {[%clk 0:03:01]} 5. Ng3 {[%clk 0:02:33]}  Bg6 {[%clk 0:03:01]} 6. Nf3 {[%clk 0:02:31]}  Nd7 {[%clk 0:03:01]} 7. h4 {[%clk 0:02:32]}  h6 {[%clk 0:03:01]} 8. h5 {[%clk 0:02:30]}  Bh7 {[%clk 0:03:01]} 9. Bd3 {[%clk 0:02:30]}  Bxd3 {[%clk 0:03:02]} 10. Qxd3 {[%clk 0:02:31]}  e6 {[%clk 0:03:01]} 11. Bd2 {[%clk 0:02:31]}  Ngf6 {[%clk 0:03:01]} 12. Ne4 {[%clk 0:02:31]}  Nxe4 {[%clk 0:03:01]} 13. Qxe4 {[%clk 0:02:32]}  Nf6 {[%clk 0:03:01]} 14. Qe2 {[%clk 0:02:32]}  Be7 {[%clk 0:02:58]} 15. O-O-O {[%clk 0:02:31]}  Qd5 {[%clk 0:02:57]} 16. Kb1 {[%clk 0:02:28]}  Qe4 {[%clk 0:02:57]} 17. Be3 {[%clk 0:02:24]}  Ng4 {[%clk 0:02:18]} 18. Nd2 {[%clk 0:02:03]}  Qf5 {[%clk 0:02:18]} 19. f3 {[%clk 0:01:55]}  Nxe3 {[%clk 0:02:13]} 20. Qxe3 {[%clk 0:01:55]}  Bg5 {[%clk 0:02:06]} 21. Qe2 {[%clk 0:01:55]}  Bxd2 {[%clk 0:02:06]} 22. Rxd2 {[%clk 0:01:55]}  O-O-O {[%clk 0:02:04]} 23. g4 {[%clk 0:01:50]}  Qf4 {[%clk 0:02:03]} 24. Rhd1 {[%clk 0:01:48]}  Rd5 {[%clk 0:02:02]} 25. Qe4 {[%clk 0:01:47]}  Qxe4 {[%clk 0:01:59]} 26. fxe4 {[%clk 0:01:47]}  Rg5 {[%clk 0:02:00]} 27. Rg2 {[%clk 0:01:45]}  Rd8 {[%clk 0:02:00]} 28. c3 {[%clk 0:01:45]}  f5 {[%clk 0:01:56]} 29. exf5 {[%clk 0:01:45]}  exf5 {[%clk 0:01:57]} 30. Rdg1 {[%clk 0:01:44]}  Rd7 {[%clk 0:01:29]} 31. gxf5 {[%clk 0:01:41]}  Rxf5 {[%clk 0:01:26]} 32. Rxg7 {[%clk 0:01:40]}  Rxh5 {[%clk 0:01:26]} 33. Rg8+ {[%clk 0:01:35]}  Kc7 {[%clk 0:01:26]} 34. Rh8 {[%clk 0:01:35]}  Rf7 {[%clk 0:01:21]} 35. Rg2 {[%clk 0:01:34]}  Rh1+ {[%clk 0:01:08]} 36. Kc2 {[%clk 0:01:32]}  h5 {[%clk 0:01:09]} 37. Kb3 {[%clk 0:01:27]}  Kb6 {[%clk 0:01:09]} 38. a4 {[%clk 0:01:23]}  a5 {[%clk 0:01:08]} 39. Rg5 {[%clk 0:01:20]}  Rf2 {[%clk 0:00:59]} 40. Rhxh5 {[%clk 0:01:12]}  Rb1 {[%clk 0:00:57]} 41. Rxa5 {[%clk 0:01:11]}  Rbxb2+ {[%clk 0:00:45]} 42. Kc4 {[%clk 0:01:08]}  Rh2 {[%clk 0:00:42]} 43. Rag5 {[%clk 0:00:59]}  Rhf2 {[%clk 0:00:36]} 44. a5+ {[%clk 0:00:55]}  Ka7 {[%clk 0:00:32]} 45. Rh7 {[%clk 0:00:54]}  Rf8 {[%clk 0:00:23]} 46. Rg6 {[%clk 0:00:51]}  Ka6 {[%clk 0:00:20]} 47. Rgg7 {[%clk 0:00:50]}  Rb8 {[%clk 0:00:19]} 48. Rh6 {[%clk 0:00:47]}  Kxa5 {[%clk 0:00:18]} 49. d5 {[%clk 0:00:47]}  cxd5+ {[%clk 0:00:18]} 50. Kxd5 {[%clk 0:00:47]}  Rb5+ {[%clk 0:00:17]} 51. Kc4 {[%clk 0:00:47]}  Rc8+ {[%clk 0:00:17]} 52. Kd3 {[%clk 0:00:46]}  Rd5+ {[%clk 0:00:17]} 53. Kc2 {[%clk 0:00:45]}  Rdc5 {[%clk 0:00:17]} 54. Rxb7 {[%clk 0:00:43]}  Rxc3+ {[%clk 0:00:17]} 55. Kd2 {[%clk 0:00:44]}  Rc2+ {[%clk 0:00:17]} 56. Kd3 {[%clk 0:00:43]}  R8c3+ {[%clk 0:00:18]} 57. Kd4 {[%clk 0:00:44]}  Rc4+ {[%clk 0:00:18]} 58. Kd3 {[%clk 0:00:44]}  R2c3+ {[%clk 0:00:19]} 59. Kd2 {[%clk 0:00:44]}  Rc2+ {[%clk 0:00:19]} 60. Kd3 {[%clk 0:00:45]}  R2c3+ {[%clk 0:00:13]} 61. Kd2 {[%clk 0:00:44]}  Rc2+ {[%clk 0:00:13]} 62. Kd3 {[%clk 0:00:45]} 1/2-1/2

[Event "November 21 Late 2023"]
[Site "https://www.chess.com"]
[Date "2023.11.21"]
[Round "11"]
[White "Curtis, John"]
[Black "liwadas82"]
[Result "0-1"]
[Board "78"]
[TimeControl "180+1"]
[WhiteFideId "3200256"]
[WhiteElo "2203"]
[BlackElo "2440"]
[WhiteTeam "AUS"]
[WhiteClock "0:01:20"]
[BlackClock "0:01:11"]

1. e4 {[%clk 0:03:00]}  e5 {[%clk 0:02:59]} 2. d4 {[%clk 0:02:58]}  exd4 {[%clk 0:02:59]} 3. c3 {[%clk 0:02:58]}  d5 {[%clk 0:02:58]} 4. Qxd4 {[%clk 0:02:57]}  dxe4 {[%clk 0:02:53]} 5. Qxe4+ {[%clk 0:02:57]}  Qe7 {[%clk 0:02:50]} 6. Qxe7+ {[%clk 0:02:55]}  Bxe7 {[%clk 0:02:50]} 7. Bc4 {[%clk 0:02:55]}  Nf6 {[%clk 0:02:49]} 8. Nf3 {[%clk 0:02:55]}  O-O {[%clk 0:02:47]} 9. O-O {[%clk 0:02:53]}  Nc6 {[%clk 0:02:46]} 10. Re1 {[%clk 0:02:52]}  Bc5 {[%clk 0:02:37]} 11. Be3 {[%clk 0:02:52]}  Bxe3 {[%clk 0:02:33]} 12. Rxe3 {[%clk 0:02:52]}  Bg4 {[%clk 0:02:29]} 13. Nbd2 {[%clk 0:02:52]}  Rad8 {[%clk 0:02:28]} 14. h3 {[%clk 0:02:45]}  Bh5 {[%clk 0:02:27]} 15. Rae1 {[%clk 0:02:43]}  h6 {[%clk 0:02:22]} 16. Nb3 {[%clk 0:02:39]}  Rfe8 {[%clk 0:02:07]} 17. Rxe8+ {[%clk 0:02:29]}  Rxe8 {[%clk 0:02:07]} 18. Rxe8+ {[%clk 0:02:29]}  Nxe8 {[%clk 0:02:08]} 19. g4 {[%clk 0:02:26]}  Bg6 {[%clk 0:02:07]} 20. Nbd4 {[%clk 0:02:26]}  Nxd4 {[%clk 0:02:04]} 21. Nxd4 {[%clk 0:02:19]}  Nd6 {[%clk 0:02:04]} 22. Bb3 {[%clk 0:02:10]}  Kf8 {[%clk 0:02:04]} 23. f3 {[%clk 0:02:09]}  Ke7 {[%clk 0:02:04]} 24. Kf2 {[%clk 0:02:10]}  c5 {[%clk 0:01:58]} 25. Ne2 {[%clk 0:02:06]}  Bb1 {[%clk 0:01:51]} 26. a3 {[%clk 0:01:57]}  g5 {[%clk 0:01:50]} 27. Ke3 {[%clk 0:01:42]}  Kf6 {[%clk 0:01:46]} 28. Ng3 {[%clk 0:01:40]}  Ke5 {[%clk 0:01:41]} 29. Ne2 {[%clk 0:01:28]}  f5 {[%clk 0:01:39]} 30. f4+ {[%clk 0:01:27]}  gxf4+ {[%clk 0:01:37]} 31. Nxf4 {[%clk 0:01:27]}  fxg4 {[%clk 0:01:30]} 32. hxg4 {[%clk 0:01:27]}  Kf6 {[%clk 0:01:21]} 33. Bd5 {[%clk 0:01:25]}  Kg5 {[%clk 0:01:20]} 34. Bf3 {[%clk 0:01:24]}  Nc4+ {[%clk 0:01:18]} 35. Kf2 {[%clk 0:01:22]}  Kxf4 {[%clk 0:01:18]} 36. Bxb7 {[%clk 0:01:23]}  Nxb2 {[%clk 0:01:17]} 37. Ba6 {[%clk 0:01:24]}  Bd3 {[%clk 0:01:15]} 38. Bb7 {[%clk 0:01:23]}  Nc4 {[%clk 0:01:12]} 39. Bc8 {[%clk 0:01:20]}  Nxa3 {[%clk 0:01:11]} 0-1

[Event "November 21 Late 2023"]
[Site "https://www.chess.com"]
[Date "2023.11.21"]
[Round "11"]
[White "Dias, Joao Batista"]
[Black "Skaric, Djuro"]
[Result "0-1"]
[Board "81"]
[TimeControl "180+1"]
[WhiteFideId "2108240"]
[BlackFideId "934569"]
[WhiteElo "1907"]
[BlackElo "2282"]
[WhiteTeam "BRA"]
[BlackTeam "SRB"]
[WhiteClock "0:00:24"]
[BlackClock "0:00:56"]

1. e4 {[%clk 0:02:56]}  d6 {[%clk 0:03:00]} 2. d4 {[%clk 0:02:56]}  g6 {[%clk 0:03:01]} 3. Nf3 {[%clk 0:02:54]}  Bg7 {[%clk 0:03:02]} 4. h3 {[%clk 0:02:55]}  Nf6 {[%clk 0:03:03]} 5. Bd3 {[%clk 0:02:54]}  O-O {[%clk 0:03:03]} 6. O-O {[%clk 0:02:54]}  Nc6 {[%clk 0:03:03]} 7. c3 {[%clk 0:02:53]}  h6 {[%clk 0:03:03]} 8. Re1 {[%clk 0:02:53]}  e5 {[%clk 0:03:03]} 9. d5 {[%clk 0:02:53]}  Ne7 {[%clk 0:03:03]} 10. Nbd2 {[%clk 0:02:50]}  c6 {[%clk 0:03:03]} 11. c4 {[%clk 0:02:50]}  b5 {[%clk 0:03:03]} 12. b3 {[%clk 0:02:50]}  bxc4 {[%clk 0:03:02]} 13. bxc4 {[%clk 0:02:49]}  c5 {[%clk 0:03:02]} 14. Nf1 {[%clk 0:02:45]}  Nh5 {[%clk 0:02:59]} 15. Ng3 {[%clk 0:02:42]}  Nf4 {[%clk 0:02:58]} 16. Ne2 {[%clk 0:02:39]}  g5 {[%clk 0:02:57]} 17. Nxf4 {[%clk 0:02:37]}  exf4 {[%clk 0:02:57]} 18. Kf1 {[%clk 0:02:34]}  Ng6 {[%clk 0:02:55]} 19. Rb1 {[%clk 0:02:33]}  g4 {[%clk 0:02:55]} 20. hxg4 {[%clk 0:02:32]}  Bxg4 {[%clk 0:02:54]} 21. Bb2 {[%clk 0:02:32]}  Be5 {[%clk 0:02:51]} 22. Qd2 {[%clk 0:02:23]}  Qf6 {[%clk 0:02:40]} 23. Nxe5 {[%clk 0:02:22]}  Nxe5 {[%clk 0:02:39]} 24. Bxe5 {[%clk 0:02:22]}  Qxe5 {[%clk 0:02:40]} 25. f3 {[%clk 0:02:21]}  Bh5 {[%clk 0:02:39]} 26. Be2 {[%clk 0:02:14]}  Rab8 {[%clk 0:02:38]} 27. Kf2 {[%clk 0:02:13]}  Bg6 {[%clk 0:02:33]} 28. Red1 {[%clk 0:02:12]}  Qg5 {[%clk 0:02:31]} 29. Kg1 {[%clk 0:02:06]}  h5 {[%clk 0:02:30]} 30. Qa5 {[%clk 0:01:52]}  h4 {[%clk 0:02:27]} 31. Qxa7 {[%clk 0:01:51]}  Rxb1 {[%clk 0:02:25]} 32. Rxb1 {[%clk 0:01:51]}  h3 {[%clk 0:02:25]} 33. Bf1 {[%clk 0:01:51]}  Kh7 {[%clk 0:02:24]} 34. Rb8 {[%clk 0:01:46]}  hxg2 {[%clk 0:02:21]} 35. Bxg2 {[%clk 0:01:44]}  Rxb8 {[%clk 0:02:16]} 36. Qxb8 {[%clk 0:01:44]}  Bxe4 {[%clk 0:02:10]} 37. Qc8 {[%clk 0:01:25]}  Bxf3 {[%clk 0:02:06]} 38. Qh3+ {[%clk 0:01:24]}  Bh5 {[%clk 0:02:06]} 39. Qd3+ {[%clk 0:01:15]}  Kh6 {[%clk 0:02:03]} 40. Qc3 {[%clk 0:01:12]}  f6 {[%clk 0:02:02]} 41. Kf2 {[%clk 0:00:57]}  Qh4+ {[%clk 0:01:58]} 42. Kf1 {[%clk 0:00:56]}  f3 {[%clk 0:01:31]} 43. Bxf3 {[%clk 0:00:44]}  Bxf3 {[%clk 0:01:30]} 44. Qxf3 {[%clk 0:00:43]}  Qxc4+ {[%clk 0:01:30]} 45. Kg2 {[%clk 0:00:41]}  Qxa2+ {[%clk 0:01:29]} 46. Kh3 {[%clk 0:00:39]}  Qb2 {[%clk 0:01:24]} 47. Qe3+ {[%clk 0:00:33]}  Kg6 {[%clk 0:01:20]} 48. Qe8+ {[%clk 0:00:30]}  Kf5 {[%clk 0:01:18]} 49. Qe6+ {[%clk 0:00:30]}  Kf4 {[%clk 0:01:18]} 50. Qxd6+ {[%clk 0:00:28]}  Qe5 {[%clk 0:01:17]} 51. Qxc5 {[%clk 0:00:26]}  Kf3 {[%clk 0:00:57]} 52. Qc6 {[%clk 0:00:24]}  Qg3# {[%clk 0:00:56]} 0-1

[Event "November 21 Late 2023"]
[Site "https://www.chess.com"]
[Date "2023.11.21"]
[Round "11"]
[White "SergioMoralesG"]
[Black "Golubev, Mikhail"]
[Result "0-1"]
[Board "87"]
[TimeControl "180+1"]
[BlackFideId "14100983"]
[WhiteElo "2345"]
[BlackElo "2352"]
[BlackTeam "UKR"]
[WhiteClock "0:00:00"]
[BlackClock "0:00:05"]

1. d4 {[%clk 0:02:52]}  Nf6 {[%clk 0:02:59]} 2. c4 {[%clk 0:02:51]}  d6 {[%clk 0:02:59]} 3. Nf3 {[%clk 0:02:51]}  g6 {[%clk 0:02:59]} 4. Nc3 {[%clk 0:02:49]}  Bg7 {[%clk 0:03:00]} 5. e4 {[%clk 0:02:49]}  O-O {[%clk 0:03:00]} 6. Be2 {[%clk 0:02:50]}  e5 {[%clk 0:03:00]} 7. Be3 {[%clk 0:02:50]}  h6 {[%clk 0:02:56]} 8. O-O {[%clk 0:02:39]}  Ng4 {[%clk 0:02:56]} 9. Bc1 {[%clk 0:02:39]}  Na6 {[%clk 0:02:56]} 10. d5 {[%clk 0:02:30]}  f5 {[%clk 0:02:45]} 11. Ne1 {[%clk 0:02:29]}  Nf6 {[%clk 0:02:44]} 12. exf5 {[%clk 0:02:29]}  Bxf5 {[%clk 0:02:34]} 13. Nc2 {[%clk 0:02:12]}  Qd7 {[%clk 0:02:27]} 14. Ne3 {[%clk 0:02:12]}  Rae8 {[%clk 0:02:25]} 15. a3 {[%clk 0:02:10]}  Nc5 {[%clk 0:02:23]} 16. b4 {[%clk 0:02:09]}  Nce4 {[%clk 0:02:21]} 17. Nxe4 {[%clk 0:02:06]}  Bxe4 {[%clk 0:02:17]} 18. f3 {[%clk 0:01:59]}  Bf5 {[%clk 0:02:14]} 19. Bb2 {[%clk 0:01:57]}  e4 {[%clk 0:01:52]} 20. f4 {[%clk 0:01:56]}  h5 {[%clk 0:01:52]} 21. Qb3 {[%clk 0:01:48]}  Ng4 {[%clk 0:01:43]} 22. Bxg4 {[%clk 0:01:48]}  hxg4 {[%clk 0:01:32]} 23. g3 {[%clk 0:01:48]}  Bxb2 {[%clk 0:01:19]} 24. Qxb2 {[%clk 0:01:47]}  Qg7 {[%clk 0:01:18]} 25. Qxg7+ {[%clk 0:01:47]}  Kxg7 {[%clk 0:01:19]} 26. Rfd1 {[%clk 0:01:42]}  Kf6 {[%clk 0:01:18]} 27. a4 {[%clk 0:01:37]}  Rh8 {[%clk 0:01:11]} 28. Rd2 {[%clk 0:01:34]}  Rh7 {[%clk 0:01:11]} 29. a5 {[%clk 0:01:33]}  Ke7 {[%clk 0:00:52]} 30. Rc1 {[%clk 0:01:32]}  Kd7 {[%clk 0:00:51]} 31. Rdc2 {[%clk 0:01:31]}  c5 {[%clk 0:00:31]} 32. dxc6+ {[%clk 0:01:26]}  bxc6 {[%clk 0:00:30]} 33. Rb2 {[%clk 0:01:17]}  Rb8 {[%clk 0:00:27]} 34. b5 {[%clk 0:01:09]}  Kd8 {[%clk 0:00:18]} 35. Rcb1 {[%clk 0:01:06]}  Rhb7 {[%clk 0:00:16]} 36. b6 {[%clk 0:01:05]}  axb6 {[%clk 0:00:15]} 37. axb6 {[%clk 0:00:59]}  Kd7 {[%clk 0:00:15]} 38. Kf2 {[%clk 0:00:58]}  Be6 {[%clk 0:00:15]} 39. Rd2 {[%clk 0:00:39]}  c5 {[%clk 0:00:12]} 40. Nd5 {[%clk 0:00:35]}  Bxd5 {[%clk 0:00:07]} 41. Rxd5 {[%clk 0:00:31]}  Rxb6 {[%clk 0:00:08]} 42. Rxb6 {[%clk 0:00:28]}  Rxb6 {[%clk 0:00:08]} 43. Ke3 {[%clk 0:00:28]}  Rb4 {[%clk 0:00:08]} 44. Rg5 {[%clk 0:00:14]}  Rxc4 {[%clk 0:00:08]} 45. Rxg4 {[%clk 0:00:14]}  d5 {[%clk 0:00:08]} 46. Rxg6 {[%clk 0:00:14]}  Rc3+ {[%clk 0:00:08]} 47. Kd2 {[%clk 0:00:14]}  d4 {[%clk 0:00:09]} 48. h4 {[%clk 0:00:14]}  e3+ {[%clk 0:00:08]} 49. Ke2 {[%clk 0:00:11]}  Rc2+ {[%clk 0:00:08]} 50. Kf3 {[%clk 0:00:06]}  Rf2+ {[%clk 0:00:07]} 51. Kg4 {[%clk 0:00:03]}  e2 {[%clk 0:00:08]} 52. Rg7+ {[%clk 0:00:02]}  Kd6 {[%clk 0:00:03]} 53. Rg6+ {[%clk 0:00:02]}  Kd5 {[%clk 0:00:03]} 54. Rg5+ {[%clk 0:00:03]}  Kc4 {[%clk 0:00:03]} 55. Re5 {[%clk 0:00:03]}  d3 {[%clk 0:00:04]} 56. h5 {[%clk 0:00:02]}  d2 {[%clk 0:00:04]} 57. h6 {[%clk 0:00:02]}  d1=Q {[%clk 0:00:04]} 58. h7 {[%clk 0:00:02]}  e1=Q+ {[%clk 0:00:04]} 59. Kg5 {[%clk 0:00:02]}  Qxe5+ {[%clk 0:00:04]} 60. fxe5 {[%clk 0:00:02]}  Qd8+ {[%clk 0:00:04]} 61. Kg6 {[%clk 0:00:00]}  Rh2 {[%clk 0:00:05]} 0-1

[Event "November 21 Late 2023"]
[Site "https://www.chess.com"]
[Date "2023.11.21"]
[Round "11"]
[White "Vargas, Mauricio"]
[Black "Golubenko, Valentina"]
[Result "1-0"]
[Board "92"]
[TimeControl "180+1"]
[WhiteFideId "4404572"]
[BlackFideId "4501993"]
[WhiteElo "1988"]
[BlackElo "2126"]
[WhiteTeam "COL"]
[BlackTeam "CRO"]
[WhiteClock "0:00:25"]
[BlackClock "0:00:02"]

1. e4 {[%clk 0:03:00]}  g6 {[%clk 0:02:59]} 2. Nc3 {[%clk 0:03:00]}  Bg7 {[%clk 0:02:59]} 3. f4 {[%clk 0:03:01]}  c5 {[%clk 0:02:59]} 4. Nf3 {[%clk 0:03:01]}  d6 {[%clk 0:02:59]} 5. Bb5+ {[%clk 0:03:01]}  Bd7 {[%clk 0:02:58]} 6. Bxd7+ {[%clk 0:03:01]}  Nxd7 {[%clk 0:02:58]} 7. O-O {[%clk 0:03:02]}  Ngf6 {[%clk 0:02:59]} 8. d3 {[%clk 0:03:02]}  O-O {[%clk 0:02:58]} 9. Qe1 {[%clk 0:03:02]}  e6 {[%clk 0:02:48]} 10. Qh4 {[%clk 0:03:01]}  d5 {[%clk 0:02:39]} 11. g4 {[%clk 0:02:47]}  Ne8 {[%clk 0:02:03]} 12. Qh3 {[%clk 0:02:41]}  d4 {[%clk 0:01:57]} 13. Ne2 {[%clk 0:02:30]}  f5 {[%clk 0:01:53]} 14. Ng5 {[%clk 0:02:26]}  h6 {[%clk 0:01:41]} 15. Nxe6 {[%clk 0:02:25]}  Qe7 {[%clk 0:01:38]} 16. Nxf8 {[%clk 0:02:21]}  Nxf8 {[%clk 0:01:32]} 17. gxf5 {[%clk 0:02:20]}  gxf5 {[%clk 0:01:30]} 18. Qxf5 {[%clk 0:02:12]}  Kh8 {[%clk 0:01:25]} 19. Kh1 {[%clk 0:02:08]}  Ne6 {[%clk 0:01:23]} 20. Rg1 {[%clk 0:02:04]}  Nd6 {[%clk 0:01:21]} 21. Qg4 {[%clk 0:02:01]}  c4 {[%clk 0:01:09]} 22. f5 {[%clk 0:01:59]}  Nc5 {[%clk 0:01:02]} 23. Nf4 {[%clk 0:01:52]}  Kh7 {[%clk 0:00:31]} 24. Qg6+ {[%clk 0:01:48]}  Kh8 {[%clk 0:00:30]} 25. Nh5 {[%clk 0:01:39]}  Ndxe4 {[%clk 0:00:16]} 26. Nxg7 {[%clk 0:01:32]}  Nf2+ {[%clk 0:00:14]} 27. Kg2 {[%clk 0:01:27]}  Qxg7 {[%clk 0:00:13]} 28. Kxf2 {[%clk 0:01:24]}  Qxg6 {[%clk 0:00:12]} 29. Rxg6 {[%clk 0:01:22]}  cxd3 {[%clk 0:00:12]} 30. Bf4 {[%clk 0:01:17]}  dxc2 {[%clk 0:00:10]} 31. Be5+ {[%clk 0:01:15]}  Kh7 {[%clk 0:00:10]} 32. Rg7+ {[%clk 0:01:14]}  Kh8 {[%clk 0:00:10]} 33. Rc7+ {[%clk 0:01:10]}  Kg8 {[%clk 0:00:10]} 34. Rg1+ {[%clk 0:01:07]}  Kf8 {[%clk 0:00:09]} 35. Bg7+ {[%clk 0:00:39]}  Ke8 {[%clk 0:00:08]} 36. Bxd4 {[%clk 0:00:37]}  Nd3+ {[%clk 0:00:06]} 37. Ke3 {[%clk 0:00:29]}  c1=Q+ {[%clk 0:00:06]} 38. Rgxc1 {[%clk 0:00:28]}  Nxc1 {[%clk 0:00:06]} 39. Rxc1 {[%clk 0:00:27]}  Kd7 {[%clk 0:00:06]} 40. f6 {[%clk 0:00:26]}  Re8+ {[%clk 0:00:06]} 41. Kd3 {[%clk 0:00:25]}  Kd6 {[%clk 0:00:05]} 42. f7 {[%clk 0:00:23]}  Rf8 {[%clk 0:00:06]} 43. Rf1 {[%clk 0:00:23]}  Ke6 {[%clk 0:00:05]} 44. Bc5 {[%clk 0:00:20]}  Rxf7 {[%clk 0:00:06]} 45. Rxf7 {[%clk 0:00:20]}  Kxf7 {[%clk 0:00:06]} 46. Be3 {[%clk 0:00:20]}  b6 {[%clk 0:00:05]} 47. Ke4 {[%clk 0:00:21]}  h5 {[%clk 0:00:04]} 48. Kf5 {[%clk 0:00:21]}  Ke7 {[%clk 0:00:04]} 49. Kg5 {[%clk 0:00:21]}  Kf7 {[%clk 0:00:04]} 50. Kxh5 {[%clk 0:00:21]}  Ke6 {[%clk 0:00:04]} 51. Kg4 {[%clk 0:00:21]}  Kf6 {[%clk 0:00:04]} 52. Bf4 {[%clk 0:00:21]}  Kg6 {[%clk 0:00:04]} 53. h4 {[%clk 0:00:21]}  Kf6 {[%clk 0:00:04]} 54. h5 {[%clk 0:00:22]}  Kg7 {[%clk 0:00:04]} 55. h6+ {[%clk 0:00:23]}  Kh7 {[%clk 0:00:04]} 56. Kg5 {[%clk 0:00:24]}  Kh8 {[%clk 0:00:04]} 57. Kg6 {[%clk 0:00:24]}  Kg8 {[%clk 0:00:04]} 58. Be5 {[%clk 0:00:24]}  b5 {[%clk 0:00:03]} 59. Bf6 {[%clk 0:00:24]}  b4 {[%clk 0:00:02]} 60. h7+ {[%clk 0:00:24]}  Kf8 {[%clk 0:00:02]} 61. h8=Q# {[%clk 0:00:25]} 1-0

[Event "November 21 Late 2023"]
[Site "https://www.chess.com"]
[Date "2023.11.21"]
[Round "11"]
[White "Oliveira, Tiago Batista"]
[Black "Broca Jimenez, Fernando"]
[Result "1-0"]
[Board "94"]
[TimeControl "180+1"]
[WhiteFideId "2108291"]
[BlackFideId "5104742"]
[WhiteElo "1962"]
[BlackElo "2062"]
[WhiteTeam "BRA"]
[BlackTeam "MEX"]
[WhiteClock "0:00:03"]
[BlackClock "0:00:00"]

1. d4 {[%clk 0:02:57]}  Nf6 {[%clk 0:02:59]} 2. c4 {[%clk 0:02:56]}  e6 {[%clk 0:02:59]} 3. Nf3 {[%clk 0:02:55]}  b6 {[%clk 0:02:59]} 4. g3 {[%clk 0:02:52]}  Bb7 {[%clk 0:02:59]} 5. Bg2 {[%clk 0:02:52]}  Be7 {[%clk 0:03:00]} 6. O-O {[%clk 0:02:52]}  O-O {[%clk 0:03:00]} 7. Nbd2 {[%clk 0:02:43]}  d5 {[%clk 0:03:00]} 8. Qc2 {[%clk 0:02:42]}  Nbd7 {[%clk 0:02:59]} 9. Rd1 {[%clk 0:02:42]}  Rc8 {[%clk 0:02:57]} 10. b3 {[%clk 0:02:41]}  c5 {[%clk 0:02:52]} 11. dxc5 {[%clk 0:02:37]}  Nxc5 {[%clk 0:02:53]} 12. Bb2 {[%clk 0:02:33]}  Qc7 {[%clk 0:02:42]} 13. Be5 {[%clk 0:02:28]}  Bd6 {[%clk 0:02:30]} 14. Qb2 {[%clk 0:01:35]}  Bxe5 {[%clk 0:02:10]} 15. Nxe5 {[%clk 0:01:34]}  dxc4 {[%clk 0:02:08]} 16. Bxb7 {[%clk 0:01:23]}  Qxb7 {[%clk 0:02:09]} 17. Ndxc4 {[%clk 0:01:23]}  Rcd8 {[%clk 0:01:43]} 18. Nd6 {[%clk 0:00:25]}  Qc7 {[%clk 0:01:38]} 19. Nb5 {[%clk 0:00:25]}  Rxd1+ {[%clk 0:01:19]} 20. Rxd1 {[%clk 0:00:23]}  Qb7 {[%clk 0:01:10]} 21. Nd6 {[%clk 0:00:22]}  Qc7 {[%clk 0:01:07]} 22. b4 {[%clk 0:00:22]}  Na4 {[%clk 0:01:03]} 23. Qb3 {[%clk 0:00:17]}  b5 {[%clk 0:00:54]} 24. f4 {[%clk 0:00:12]}  Nd5 {[%clk 0:00:53]} 25. Nxb5 {[%clk 0:00:11]}  Qb6+ {[%clk 0:00:50]} 26. Nd4 {[%clk 0:00:10]}  Qa6 {[%clk 0:00:43]} 27. e3 {[%clk 0:00:08]}  Nab6 {[%clk 0:00:40]} 28. Qd3 {[%clk 0:00:08]}  Qxa2 {[%clk 0:00:38]} 29. e4 {[%clk 0:00:07]}  Nxb4 {[%clk 0:00:36]} 30. Qb5 {[%clk 0:00:05]}  Qb2 {[%clk 0:00:24]} 31. Ndc6 {[%clk 0:00:04]}  Nc2 {[%clk 0:00:20]} 32. Qxb2 {[%clk 0:00:04]}  Ne3 {[%clk 0:00:19]} 33. Rc1 {[%clk 0:00:04]}  Na4 {[%clk 0:00:17]} 34. Qa3 {[%clk 0:00:04]}  Nb6 {[%clk 0:00:10]} 35. Qxe3 {[%clk 0:00:04]}  h6 {[%clk 0:00:10]} 36. Nd3 {[%clk 0:00:03]}  f5 {[%clk 0:00:06]} 37. e5 {[%clk 0:00:03]}  Nd5 {[%clk 0:00:06]} 38. Qc5 {[%clk 0:00:03]}  Kf7 {[%clk 0:00:02]} 39. Qd6 {[%clk 0:00:03]}  Re8 {[%clk 0:00:02]} 40. Qd7+ {[%clk 0:00:03]}  Kf8 {[%clk 0:00:00]} 41. Nd8 {[%clk 0:00:03]} 1-0

[Event "November 21 Late 2023"]
[Site "https://www.chess.com"]
[Date "2023.11.21"]
[Round "11"]
[White "Ivanov, Aleksandr"]
[Black "Smirnov, Timofey"]
[Result "0-1"]
[Board "97"]
[TimeControl "180+1"]
[WhiteFideId "2092980"]
[BlackFideId "24176427"]
[WhiteElo "2023"]
[BlackElo "2245"]
[WhiteTeam "USA"]
[BlackTeam "RUS"]
[WhiteClock "0:00:00"]
[BlackClock "0:00:17"]

1. d4 {[%clk 0:01:42]}  d5 {[%clk 0:02:57]} 2. c4 {[%clk 0:01:41]}  c6 {[%clk 0:02:57]} 3. cxd5 {[%clk 0:01:40]}  cxd5 {[%clk 0:02:57]} 4. Bf4 {[%clk 0:01:41]}  Nf6 {[%clk 0:02:56]} 5. e3 {[%clk 0:01:41]}  Nc6 {[%clk 0:02:56]} 6. Nc3 {[%clk 0:01:41]}  a6 {[%clk 0:02:53]} 7. Bd3 {[%clk 0:01:40]}  Bg4 {[%clk 0:02:51]} 8. Qb3 {[%clk 0:01:36]}  Na5 {[%clk 0:02:33]} 9. Qc2 {[%clk 0:01:22]}  e6 {[%clk 0:02:24]} 10. Nf3 {[%clk 0:01:19]}  Bxf3 {[%clk 0:02:23]} 11. gxf3 {[%clk 0:01:19]}  Bd6 {[%clk 0:02:22]} 12. Bxd6 {[%clk 0:01:19]}  Qxd6 {[%clk 0:02:23]} 13. f4 {[%clk 0:01:19]}  b5 {[%clk 0:02:16]} 14. Qe2 {[%clk 0:01:02]}  Rc8 {[%clk 0:02:08]} 15. O-O {[%clk 0:01:01]}  h5 {[%clk 0:01:54]} 16. Kh1 {[%clk 0:01:01]}  Ng4 {[%clk 0:01:35]} 17. Rg1 {[%clk 0:00:54]}  g6 {[%clk 0:01:27]} 18. Rg2 {[%clk 0:00:41]}  b4 {[%clk 0:01:20]} 19. Na4 {[%clk 0:00:37]}  Nc4 {[%clk 0:01:17]} 20. Nc5 {[%clk 0:00:31]}  a5 {[%clk 0:01:06]} 21. Rag1 {[%clk 0:00:17]}  Qe7 {[%clk 0:01:02]} 22. h3 {[%clk 0:00:14]}  Nf6 {[%clk 0:01:01]} 23. Bxc4 {[%clk 0:00:12]}  dxc4 {[%clk 0:01:01]} 24. Qxc4 {[%clk 0:00:12]}  Nd7 {[%clk 0:00:57]} 25. Qb5 {[%clk 0:00:12]}  Kd8 {[%clk 0:00:50]} 26. Nb7+ {[%clk 0:00:11]}  Ke8 {[%clk 0:00:48]} 27. Nxa5 {[%clk 0:00:11]}  Qh4 {[%clk 0:00:42]} 28. Rg3 {[%clk 0:00:10]}  Qe7 {[%clk 0:00:28]} 29. Nc6 {[%clk 0:00:07]}  Qd6 {[%clk 0:00:25]} 30. Ne5 {[%clk 0:00:05]}  Ke7 {[%clk 0:00:19]} 31. Qb7 {[%clk 0:00:00]}  Rc7 {[%clk 0:00:17]} 0-1